bitfinex/quotes_BTCUSD_20240902
["timestamp","ask_amount","ask_price","bid_price","bid_amount"]
[1725249406820,0.850162,57790.0,57777.0,0.02309687]
[1725249407034,0.850162,57790.0,57775.0,0.0935]
[1725249407035,0.1,57789.0,57775.0,0.0935]
[1725249407261,1.42118,57788.0,57775.0,0.0935]
[1725249407469,1.39628,57788.0,57775.0,0.0935]
[1725249407680,0.1,57787.0,57775.0,0.0935]
[1725249407891,1.289139,57787.0,57775.0,0.0935]
[1725249408103,0.47954067,57786.0,57775.0,0.0935]
[1725249408316,0.19926771,57789.0,57776.0,0.00346152]
[1725249408539,0.19926771,57789.0,57775.0,0.0935]
[1725249408540,0.1,57789.0,57775.0,0.0935]
[1725249408755,0.1,57789.0,57777.0,0.02309687]
[1725249408962,0.01,57788.0,57776.0,0.02656204]
[1725249409427,0.01,57788.0,57778.0,0.02309294]
[1725249409637,0.1,57799.0,57777.0,0.02309687]
[1725249409884,0.882232,57794.0,57779.0,0.023089]
[1725249410107,0.1,57793.0,57778.0,0.02309294]
[1725249410329,0.4295,57792.0,57775.0,0.0935]
[1725249410535,0.1598951,57791.0,57776.0,0.00346124]
[1725249410778,0.1,57791.0,57776.0,0.02656204]
[1725249411647,0.11811536,57800.0,57776.0,0.02656204]
[1725249411863,0.3162,57794.0,57776.0,0.0231008]
[1725249412053,0.1904651,57793.0,57777.0,0.00346103]
[1725249412308,0.11811536,57800.0,57778.0,0.173]
[1725249412532,1.22947,57799.0,57778.0,0.173]
[1725249412711,1.22947,57799.0,57779.0,0.02655003]
[1725249412712,0.069448,57797.0,57779.0,0.02655003]
[1725249412925,0.1,57798.0,57779.0,0.02655003]
[1725249412926,0.27533734,57796.0,57779.0,0.144239]
[1725249413142,0.244534,57795.0,57779.0,0.023089]
[1725249413373,0.1,57798.0,57779.0,0.023089]
[1725249413601,0.02147193,57797.0,57780.0,0.09836083]
[1725249413840,0.1,57798.0,57782.0,0.0781]
[1725249414088,0.1,57798.0,57784.0,0.0949]
[1725249414613,0.02715893,57801.0,57785.0,0.02306542]
[1725249416080,0.178081,57800.0,57785.0,0.02306542]
[1725249416340,0.12641429,57799.0,57785.0,0.02306542]
[1725249416584,0.255719,57798.0,57785.0,0.02306542]
[1725249416889,0.728145,57797.0,57785.0,0.02306542]
[1725249417137,0.000819,57798.0,57786.0,0.173]
[1725249417401,0.000819,57798.0,57787.0,0.216034]
[1725249417632,0.000819,57798.0,57792.0,0.0949]
[1725249417880,0.069435,57809.0,57793.0,0.00346005]
[1725249418134,0.069435,57809.0,57799.0,0.173]
[1725249418352,0.01811536,57824.0,57806.0,0.173]
[1725249418567,0.50540786,57820.0,57812.0,0.0949]
[1725249418787,0.000818,57830.0,57812.0,0.0949]
[1725249418788,0.070229,57830.0,57812.0,0.0949]
[1725249419005,0.000818,57830.0,57813.0,0.02295544]
[1725249420350,0.000818,57830.0,57814.0,0.00345917]
[1725249420799,0.000818,57830.0,57815.0,0.12254759]
[1725249421025,0.000818,57830.0,57815.0,0.12600638]
[1725249421269,0.000818,57830.0,57815.0,0.12254759]
[1725249421514,0.528111,57820.0,57815.0,0.02294759]
[1725249421759,0.0528929,57819.0,57815.0,0.02294759]
[1725249421991,1.732411,57818.0,57808.0,0.0979]
[1725249422225,1.002684,57817.0,57808.0,0.0979]
[1725249422464,1.376128,57816.0,57808.0,0.0979]
[1725249422694,0.1,57815.0,57808.0,0.0979]
[1725249422923,1.270232,57815.0,57808.0,0.0979]
[1725249423188,0.732657,57814.0,57808.0,0.0979]
[1725249423429,0.0832657,57813.0,57805.0,0.0739]
[1725249423655,0.1832657,57813.0,57805.0,0.0739]
[1725249423881,0.121098,57804.0,57803.0,0.1003]
[1725249424117,0.121098,57804.0,57794.0,0.4771]
[1725249424118,0.363321,57800.0,57799.0,0.0739]
[1725249424378,0.363352,57795.0,57794.0,0.4771]
[1725249424589,0.605587,57795.0,57794.0,0.4771]
[1725249426319,0.121114,57797.0,57795.0,0.1003]
[1725249426956,0.121115,57796.0,57795.0,0.1003]
[1725249427164,0.121112,57798.0,57795.0,0.1003]
[1725249427369,0.121112,57798.0,57797.0,0.1003]
[1725249427609,0.0891,57835.0,57799.0,0.002]
[1725249427821,0.121089,57809.0,57804.0,0.221398]
[1725249428035,0.242147,57817.0,57806.0,0.1003]
[1725249428036,0.121085,57811.0,57806.0,0.1003]
[1725249428258,0.121088,57809.0,57807.0,0.09635935]
[1725249428488,0.121087,57810.0,57807.0,0.09635935]
[1725249428710,0.242107,57826.0,57807.0,0.14715292]
[1725249428932,0.12109,57808.0,57807.0,0.0929]
[1725249429154,0.363271,57808.0,57807.0,0.0929]
[1725249429861,0.605452,57808.0,57807.0,0.0929]
[1725249434333,0.1,57817.0,57808.0,0.121089]
[1725249434549,0.000818,57818.0,57811.0,0.077]
[1725249434807,0.000818,57818.0,57809.0,0.121087]
[1725249434808,0.121078,57814.0,57812.0,0.19493285]
[1725249435017,0.121078,57814.0,57813.0,0.0947]
[1725249435018,0.121077,57814.0,57813.0,0.0947]
[1725249435439,0.121077,57814.0,57813.0,0.11806107]
[1725249435859,0.363232,57814.0,57813.0,0.11806107]
[1725249437438,0.847542,57814.0,57813.0,0.11806107]
[1725249437678,1.390318,57814.0,57813.0,0.02336107]
[1725249438140,1.390318,57814.0,57804.0,0.0945]
[1725249438141,0.363289,57805.0,57804.0,0.0945]
[1725249438369,0.463289,57805.0,57804.0,0.0945]
[1725249438604,0.947675,57805.0,57804.0,0.0945]
[1725249445918,0.000818,57818.0,57804.0,0.0945]
[1725249445919,0.000818,57818.0,57817.0,0.0929]
[1725249446151,0.000818,57821.0,57820.0,0.121065]
[1725249446380,0.000818,57821.0,57820.0,0.98156077]
[1725249446631,0.000818,57830.0,57829.0,0.121046]
[1725249446855,0.000818,57830.0,57829.0,0.49882357]
[1725249447077,0.000817,57856.0,57833.0,0.363114]
[1725249447294,0.000817,57856.0,57833.0,0.468214]
[1725249447526,0.000817,57856.0,57833.0,0.58647415]
[1725249447766,0.000817,57856.0,57833.0,0.12638257]
[1725249447986,0.129226,57834.0,57833.0,0.12638257]
[1725249448219,0.129226,57834.0,57833.0,0.1031]
[1725249448463,0.129226,57834.0,57813.0,0.99407757]
[1725249448464,0.121054,57825.0,57824.0,0.0781]
[1725249448930,0.121054,57825.0,57824.0,0.1746]
[1725249449857,0.121047,57829.0,57824.0,0.19206]
[1725249450102,0.1,57833.0,57824.0,0.19206]
[1725249450343,0.00819,57834.0,57825.0,0.00345822]
[1725249450735,0.121045,57830.0,57826.0,0.0034582]
[1725249450947,0.121046,57829.0,57826.0,0.0034582]
[1725249451167,0.121046,57829.0,57824.0,0.1746]
[1725249451810,0.121046,57829.0,57825.0,0.00345832]
[1725249452049,0.00819,57834.0,57825.0,0.03302412]
[1725249452050,0.121043,57831.0,57825.0,0.03302412]
[1725249452406,0.221045,57830.0,57825.0,0.03302412]
[1725249452620,0.121045,57830.0,57825.0,0.03302412]
[1725249452846,0.00819,57834.0,57825.0,0.03302412]
[1725249452847,0.121047,57829.0,57825.0,0.03302412]
[1725249453081,0.121047,57829.0,57825.0,0.00345832]
[1725249453853,0.121049,57828.0,57825.0,0.00345832]
[1725249456321,0.000818,57830.0,57824.0,0.1746]
[1725249456322,0.121051,57827.0,57824.0,0.1746]
[1725249456549,0.000818,57830.0,57824.0,0.1746]
[1725249456773,0.100818,57830.0,57824.0,0.1746]
[1725249457012,0.121054,57826.0,57824.0,0.1746]
[1725249458520,0.121054,57826.0,57824.0,0.2041662]
[1725249458961,0.121049,57828.0,57824.0,0.2041662]
[1725249459180,0.100818,57830.0,57824.0,0.2041662]
[1725249459181,0.000818,57830.0,57829.0,0.461239]
[1725249459434,0.000818,57830.0,57829.0,0.293246]
[1725249459640,0.000818,57830.0,57829.0,0.3225706]
[1725249459862,0.000818,57830.0,57829.0,0.81021426]
[1725249460085,0.000818,57830.0,57829.0,1.25848483]
[1725249460556,0.000818,57830.0,57829.0,1.26048483]
[1725249460787,0.000818,57830.0,57829.0,1.2837831]
[1725249461016,0.000818,57830.0,57829.0,1.03623244]
[1725249461237,0.121862,57830.0,57829.0,0.19549827]
[1725249461439,0.121862,57830.0,57829.0,0.12139827]
[1725249463795,0.121862,57830.0,57829.0,0.02329827]
[1725249464278,0.121054,57825.0,57824.0,0.1799]
[1725249464732,0.000818,57830.0,57815.0,0.1721]
[1725249465011,0.121073,57816.0,57815.0,0.1721]
[1725249465236,0.121069,57818.0,57815.0,0.1721]
[1725249465465,0.121073,57816.0,57815.0,0.1721]
[1725249466820,0.12107,57818.0,57815.0,0.2014184]
[1725249467264,0.12107,57818.0,57815.0,0.1721]
[1725249468439,0.12107,57818.0,57815.0,0.17555893]
[1725249468888,0.12107,57818.0,57815.0,0.1721]
[1725249469254,0.121064,57821.0,57815.0,0.1721]
[1725249469479,0.121064,57821.0,57816.0,0.1624988]
[1725249470476,0.121064,57821.0,57817.0,0.121071]
[1725249471343,0.000818,57830.0,57824.0,0.121056]
[1725249471565,0.000818,57830.0,57826.0,0.0768]
[1725249471789,0.000818,57830.0,57827.0,0.12105]
[1725249472249,0.000818,57830.0,57829.0,0.221146]
[1725249472472,0.000818,57830.0,57829.0,0.8348824]
[1725249472917,0.000818,57830.0,57829.0,0.8398824]
[1725249473549,0.000818,57830.0,57829.0,1.0819754]
[1725249474403,0.000818,57830.0,57829.0,0.8348824]
[1725249474825,0.000818,57830.0,57829.0,0.5927894]
[1725249475674,0.000818,57830.0,57829.0,0.56173727]
[1725249480016,0.000818,57830.0,57829.0,0.31964427]
[1725249480710,0.121862,57830.0,57829.0,0.19859827]
[1725249480945,0.000818,57830.0,57829.0,0.19859827]
[1725249481185,0.000818,57830.0,57829.0,0.2426688]
[1725249481663,0.000818,57830.0,57829.0,0.3637148]
[1725249483003,0.000818,57830.0,57829.0,0.31964427]
[1725249484199,0.000818,57830.0,57829.0,0.56173727]
[1725249484902,0.000818,57830.0,57829.0,1.05092327]
[1725249485384,0.000818,57830.0,57829.0,0.80883027]
[1725249485830,0.000818,57830.0,57829.0,0.81083027]
[1725249486096,0.000818,57830.0,57829.0,1.21033465]
[1725249486355,0.000818,57830.0,57829.0,1.21233465]
[1725249486625,0.000818,57830.0,57829.0,1.45442765]
[1725249486919,0.000818,57847.0,57846.0,0.12101]
[1725249487146,0.000818,57847.0,57846.0,0.03996162]
[1725249487511,0.000818,57847.0,57846.0,0.42622428]
[1725249488006,0.000818,57847.0,57846.0,0.05973638]
[1725249488227,0.000818,57847.0,57846.0,0.02323158]
[1725249488440,0.000818,57847.0,57846.0,0.12101]
[1725249488661,0.000818,57847.0,57846.0,0.02323158]
[1725249489106,0.000818,57847.0,57841.0,0.413641]
[1725249489329,0.000818,57847.0,57846.0,0.02323158]
[1725249489563,0.000818,57847.0,57841.0,0.413641]
[1725249489564,0.000818,57847.0,57845.0,0.121011]
[1725249489794,0.000818,57847.0,57846.0,0.02323158]
[1725249490648,0.121826,57847.0,57846.0,0.02323158]
[1725249490857,0.121826,57847.0,57841.0,0.292619]
[1725249491102,0.121826,57847.0,57846.0,0.02323158]
[1725249491369,0.121826,57847.0,57842.0,0.121019]
[1725249491889,0.000818,57847.0,57843.0,0.14771557]
[1725249492034,0.000818,57847.0,57843.0,0.14425835]
[1725249492446,0.000818,57847.0,57844.0,0.121014]
[1725249492649,0.000818,57847.0,57844.0,0.17680364]
[1725249492871,0.12101,57846.0,57845.0,0.0232355]
[1725249493093,0.12101,57846.0,57845.0,0.0222355]
[1725249493094,0.363031,57846.0,57845.0,0.0222355]
[1725249493327,0.363031,57846.0,57835.0,0.0747]
[1725249493328,0.121034,57835.0,57830.0,0.0747]
[1725249493583,0.121034,57835.0,57831.0,0.0927]
[1725249493815,0.0785,57844.0,57831.0,0.11591899]
[1725249494007,0.121034,57835.0,57831.0,0.11591899]
[1725249494232,0.0785,57844.0,57832.0,0.03394266]
[1725249494450,0.121035,57835.0,57833.0,0.02321114]
[1725249495095,0.121035,57835.0,57829.0,0.1219458]
[1725249495096,0.121036,57834.0,57829.0,0.1219458]
[1725249495323,0.121036,57834.0,57830.0,0.06917458]
[1725249495522,0.121032,57836.0,57830.0,0.19021758]
[1725249495731,0.0785,57844.0,57830.0,0.19021758]
[1725249495732,0.242059,57838.0,57830.0,0.19021758]
[1725249495946,0.121033,57835.0,57831.0,0.08909174]
[1725249496200,0.121033,57835.0,57831.0,0.07609174]
[1725249497254,0.122033,57835.0,57831.0,0.09009174]
[1725249497474,0.121036,57834.0,57831.0,0.09009174]
[1725249498102,0.121036,57834.0,57832.0,0.02120375]
[1725249498508,0.001,57835.0,57831.0,0.014]
[1725249498725,0.242076,57833.0,57831.0,0.014]
[1725249498975,0.363115,57833.0,57831.0,0.014]
[1725249499196,0.363115,57833.0,57829.0,0.0008998]
[1725249499403,0.363115,57833.0,57831.0,0.012]
[1725249499610,0.122037,57834.0,57831.0,0.08237488]
[1725249499807,0.001,57834.0,57831.0,0.07037488]
[1725249500012,0.001,57833.0,57831.0,0.08137488]
[1725249500234,0.001,57833.0,57832.0,0.34220563]
[1725249500458,0.000818,57847.0,57836.0,0.002]
[1725249500669,0.000818,57847.0,57840.0,0.1731]
[1725249500885,0.000818,57847.0,57843.0,0.242034]
[1725249501105,0.000818,57847.0,57846.0,0.363031]
[1725249501351,0.000818,57847.0,57846.0,1.00255406]
[1725249501574,0.000817,57860.0,57852.0,0.005]
[1725249501777,0.000817,57860.0,57855.0,0.84524865]
[1725249501986,0.000817,57860.0,57855.0,1.13207014]
[1725249502196,0.000817,57860.0,57855.0,1.165195]
[1725249502398,0.000817,57860.0,57855.0,1.3047145]
[1725249502616,0.000817,57860.0,57855.0,1.3017145]
[1725249503265,0.001817,57856.0,57855.0,1.3137145]
[1725249503473,0.000817,57856.0,57855.0,1.3017145]
[1725249503907,0.000817,57856.0,57855.0,1.3939145]
[1725249504124,0.001817,57856.0,57855.0,1.4079145]
[1725249504333,0.000817,57856.0,57855.0,1.3959145]
[1725249504746,0.000817,57856.0,57855.0,1.3939145]
[1725249505584,0.000817,57856.0,57855.0,1.4069145]
[1725249505820,0.001817,57856.0,57855.0,1.4069145]
[1725249506041,0.000817,57856.0,57855.0,1.3939145]
[1725249506500,0.001817,57856.0,57855.0,1.4079145]
[1725249506839,0.001817,57856.0,57855.0,1.4099145]
[1725249507312,0.001817,57856.0,57855.0,1.4079145]
[1725249507560,0.001817,57856.0,57855.0,1.4099145]
[1725249508311,0.001817,57856.0,57855.0,1.4079145]
[1725249509468,0.006933,57894.0,57859.0,0.246967]
[1725249509692,0.120963,57869.0,57862.0,0.241954]
[1725249509902,0.120962,57870.0,57864.0,0.120973]
[1725249510336,0.120962,57870.0,57865.0,0.02346429]
[1725249510797,0.129137,57872.0,57866.0,0.101]
[1725249511014,0.00818,57872.0,57871.0,0.120958]
[1725249511235,0.00818,57872.0,57871.0,0.46733044]
[1725249511456,0.00818,57872.0,57871.0,0.73268822]
[1725249511688,0.00818,57872.0,57871.0,1.05290522]
[1725249511920,0.00818,57872.0,57871.0,1.21008221]
[1725249512325,0.076,57898.0,57871.0,1.21008221]
[1725249512326,0.002,57915.0,57895.0,0.005]
[1725249512563,0.120906,57896.0,57895.0,0.009]
[1725249513005,0.02724125,57916.0,57898.0,0.005]
[1725249513212,0.1209,57899.0,57898.0,0.005]
[1725249513424,0.1209,57899.0,57898.0,0.004]
[1725249514279,0.2209,57899.0,57898.0,0.004]
[1725249516234,0.2209,57899.0,57898.0,0.015]
[1725249516453,0.2209,57899.0,57891.0,0.008]
[1725249516454,0.1,57899.0,57891.0,0.008]
[1725249516671,0.120912,57893.0,57892.0,0.008]
[1725249516896,0.120912,57893.0,57892.0,0.004]
[1725249517153,0.220912,57893.0,57892.0,0.004]
[1725249517391,0.1,57893.0,57884.0,0.008]
[1725249517636,0.120929,57885.0,57884.0,0.008]
[1725249518117,0.179,57892.0,57891.0,0.004]
[1725249518118,0.296114,57892.0,57891.0,0.004]
[1725249522104,0.220914,57892.0,57891.0,0.017]
[1725249523521,0.120911,57894.0,57893.0,0.004]
[1725249523751,0.000817,57899.0,57898.0,0.004]
[1725249523993,0.000817,57899.0,57898.0,0.008]
[1725249524240,0.000817,57899.0,57898.0,0.12293504]
[1725249524241,0.121717,57899.0,57898.0,0.12293504]
[1725249524475,0.000817,57899.0,57898.0,0.0996]
[1725249524754,0.000817,57899.0,57898.0,0.60028189]
[1725249524995,0.02710334,57913.0,57912.0,0.008]
[1725249524996,0.14797334,57913.0,57912.0,0.008]
[1725249525251,0.12087,57913.0,57912.0,0.1069]
[1725249525478,0.00013,57916.0,57915.0,0.004]
[1725249525952,0.120994,57916.0,57915.0,0.03126851]
[1725249526166,0.199894,57916.0,57915.0,0.02326851]
[1725249526407,0.2199234,57916.0,57915.0,0.02326851]
[1725249526633,0.120881,57908.0,57907.0,0.004]
[1725249526846,0.120881,57908.0,57907.0,0.008]
[1725249527284,0.220881,57908.0,57907.0,0.008]
[1725249527495,0.220881,57908.0,57907.0,0.004]
[1725249527702,0.120896,57901.0,57900.0,0.008]
[1725249528131,0.120896,57901.0,57900.0,0.03132721]
[1725249528363,0.120896,57901.0,57900.0,0.008]
[1725249528559,0.120896,57901.0,57900.0,0.03132721]
[1725249528835,0.120896,57901.0,57900.0,0.008]
[1725249529037,0.120896,57901.0,57900.0,0.03132721]
[1725249529276,0.120896,57901.0,57900.0,0.008]
[1725249529520,0.120896,57901.0,57900.0,0.03132721]
[1725249530017,0.120896,57901.0,57900.0,0.04532721]
[1725249531089,0.120896,57901.0,57900.0,0.04132721]
[1725249531296,0.220896,57901.0,57900.0,0.04132721]
[1725249531712,0.220896,57901.0,57900.0,0.014]
[1725249533283,0.220896,57901.0,57890.0,0.008]
[1725249533284,0.1,57901.0,57890.0,0.008]
[1725249533518,1.207105,57900.0,57890.0,0.008]
[1725249533738,1.028056,57899.0,57889.0,0.008]
[1725249533957,0.943329,57898.0,57889.0,0.008]
[1725249534166,0.1,57897.0,57890.0,0.008]
[1725249534391,0.1,57897.0,57890.0,0.004]
[1725249534619,0.1,57897.0,57881.0,0.0757]
[1725249534620,0.521924,57896.0,57886.0,0.008]
[1725249534844,0.1,57895.0,57890.0,0.013]
[1725249535067,0.1,57897.0,57896.0,0.004]
[1725249535505,0.1,57897.0,57896.0,0.03134287]
[1725249535727,0.02710512,57910.0,57909.0,0.004]
[1725249535941,0.06971,57919.0,57909.0,0.004]
[1725249535942,0.0004,57919.0,57913.0,0.004]
[1725249536159,0.0004,57919.0,57915.0,0.008]
[1725249536395,0.0004,57919.0,57915.0,0.1004]
[1725249536623,0.0004,57919.0,57918.0,0.1799]
[1725249537081,0.0004,57919.0,57918.0,0.3244423]
[1725249537333,0.0004,57919.0,57918.0,0.62373239]
[1725249537549,0.0004,57919.0,57918.0,0.62027983]
[1725249537799,0.0004,57919.0,57918.0,0.2015823]
[1725249538444,0.0004,57919.0,57918.0,0.1220823]
[1725249539141,0.0004,57919.0,57918.0,0.0256823]
[1725249539369,0.01849609,57919.0,57918.0,0.0296823]
[1725249539612,0.01849609,57919.0,57918.0,0.0436823]
[1725249539845,0.04840293,57948.0,57922.0,0.005]
[1725249540058,0.018496,57936.0,57922.0,0.005]
[1725249540279,0.018496,57936.0,57919.0,0.01]
[1725249540280,2.452634,57935.0,57923.0,0.02366274]
[1725249540494,0.023,57934.0,57923.0,0.02366274]
[1725249540718,0.023,57934.0,57920.0,0.005]
[1725249540939,2.452634,57933.0,57920.0,0.005]
[1725249541158,0.023,57932.0,57918.0,0.014]
[1725249541391,2.452634,57931.0,57918.0,0.014]
[1725249541601,0.000816,57919.0,57916.0,0.01]
[1725249541815,0.000816,57919.0,57918.0,0.005]
[1725249542028,0.000816,57919.0,57917.0,0.02368621]
[1725249542245,0.000816,57919.0,57918.0,0.0236823]
[1725249542711,0.000816,57919.0,57918.0,0.0286823]
[1725249544031,0.000816,57919.0,57918.0,0.0426823]
[1725249544236,0.000816,57919.0,57918.0,0.0286823]
[1725249544418,0.000816,57919.0,57918.0,0.0336823]
[1725249544629,0.000816,57919.0,57918.0,0.0496823]
[1725249544840,0.000816,57919.0,57918.0,0.1477823]
[1725249545585,0.000816,57919.0,57918.0,0.2263823]
[1725249545813,0.000816,57919.0,57918.0,0.24125029]
[1725249546036,0.000816,57919.0,57918.0,0.23025029]
[1725249546266,0.000816,57919.0,57918.0,0.24125029]
[1725249546487,0.000816,57919.0,57918.0,0.2263823]
[1725249548673,0.000816,57919.0,57918.0,0.3472423]
[1725249549150,0.01809733,57947.0,57918.0,0.2263823]
[1725249549348,1.19451186,57946.0,57930.0,0.01]
[1725249549561,0.335419,57945.0,57931.0,0.01]
[1725249549773,0.194139,57944.0,57932.0,0.0967]
[1725249549991,0.490061,57946.0,57933.0,0.01303315]
[1725249550225,0.01809733,57947.0,57940.0,0.005]
[1725249550473,0.01809733,57947.0,57946.0,0.193]
[1725249550474,0.02109733,57947.0,57946.0,0.193]
[1725249550689,0.01809733,57947.0,57946.0,0.193]
[1725249550914,0.01809733,57947.0,57946.0,0.21657282]
[1725249551138,0.01809733,57947.0,57946.0,0.02057282]
[1725249551139,0.65231833,57947.0,57946.0,0.02057282]
[1725249551385,0.01809733,57947.0,57945.0,0.005]
[1725249551687,0.01809733,57947.0,57946.0,0.1067]
[1725249551919,0.01809733,57947.0,57946.0,0.13005853]
[1725249552355,0.01809733,57947.0,57946.0,0.12505853]
[1725249552568,0.02109733,57947.0,57946.0,0.02435853]
[1725249553116,0.01809733,57947.0,57946.0,0.02335853]
[1725249553350,0.01809733,57947.0,57946.0,0.03235853]
[1725249553577,0.57415333,57947.0,57946.0,0.02335853]
[1725249553807,0.49252633,57947.0,57946.0,0.03235853]
[1725249554037,0.39962633,57947.0,57946.0,0.03235853]
[1725249554296,0.11809733,57947.0,57946.0,0.03235853]
[1725249554779,1.28097033,57947.0,57946.0,0.02335853]
[1725249555009,0.67266033,57947.0,57940.0,0.005]
[1725249555232,0.87226,57946.0,57939.0,0.005]
[1725249555448,0.44388,57945.0,57943.0,0.005]
[1725249555667,0.01809733,57947.0,57943.0,0.005]
[1725249555668,0.1,57944.0,57943.0,0.005]
[1725249556100,0.1,57944.0,57943.0,0.03837026]
[1725249556532,0.1,57944.0,57943.0,0.04437026]
[1725249556745,0.01809733,57947.0,57943.0,0.04437026]
[1725249556951,0.01809733,57947.0,57943.0,0.03837026]
[1725249557166,0.01809733,57947.0,57943.0,0.04537026]
[1725249558946,0.01809733,57947.0,57943.0,0.03837026]
[1725249559401,0.01809733,57947.0,57943.0,0.04137026]
[1725249559624,0.01809733,57947.0,57945.0,0.005]
[1725249560076,0.01809733,57947.0,57943.0,0.003]
[1725249560077,0.18826,57946.0,57943.0,0.003]
[1725249560509,0.1,57945.0,57943.0,0.003]
[1725249560770,0.1,57945.0,57940.0,0.005]
[1725249560771,0.303995,57944.0,57940.0,0.005]
[1725249560998,0.1,57943.0,57941.0,0.015]
[1725249562338,0.01809733,57947.0,57941.0,0.01]
[1725249562552,0.162376,57946.0,57941.0,0.015]
[1725249562756,0.162376,57946.0,57943.0,0.005]
[1725249562984,0.1,57945.0,57943.0,0.005]
[1725249563417,0.1,57945.0,57941.0,0.015]
[1725249563636,0.1,57963.0,57941.0,0.015]
[1725249563845,0.1,57963.0,57941.0,0.013]
[1725249563846,0.01809059,57960.0,57941.0,0.013]
[1725249564067,2.475634,57959.0,57941.0,0.005]
[1725249564328,2.62118564,57958.0,57941.0,0.005]
[1725249564547,2.475634,57957.0,57941.0,0.005]
[1725249565010,2.452634,57956.0,57941.0,0.005]
[1725249565251,0.023,57955.0,57937.0,0.0763]
[1725249565483,0.023,57955.0,57928.0,0.4771]
[1725249565484,2.62118564,57954.0,57943.0,0.006]
[1725249565702,2.575634,57953.0,57932.0,0.015]
[1725249565926,2.575634,57953.0,57941.0,0.001]
[1725249565927,2.452634,57952.0,57941.0,0.001]
[1725249566145,0.26855164,57951.0,57941.0,0.001]
[1725249566358,2.452634,57950.0,57933.0,0.01]
[1725249566582,0.123,57949.0,57933.0,0.005]
[1725249566825,2.452634,57948.0,57941.0,0.0008976]
[1725249567036,0.16855164,57947.0,57941.0,0.0008976]
[1725249567264,1.93518,57946.0,57941.0,0.0008976]
[1725249567478,0.085,57945.0,57941.0,0.0008976]
[1725249567698,2.097456,57944.0,57941.0,0.0008976]
[1725249568415,0.023,57943.0,57941.0,0.0008976]
[1725249568669,2.452634,57942.0,57941.0,6e-07]
[1725249569147,2.475634,57942.0,57941.0,6e-07]
[1725249569371,0.023,57942.0,57941.0,6e-07]
[1725249570288,0.024,57942.0,57941.0,6e-07]
[1725249572962,0.001,57942.0,57941.0,6e-07]
[1725249573177,2.452634,57941.0,57923.0,0.50540786]
[1725249573393,0.023,57940.0,57923.0,0.50540786]
[1725249573538,2.452634,57939.0,57923.0,0.50540786]
[1725249573756,0.023,57938.0,57920.0,0.0772]
[1725249573954,2.452634,57937.0,57920.0,0.0772]
[1725249574158,0.02709381,57934.0,57921.0,0.50540786]
[1725249574482,0.751721,57933.0,57927.0,0.005]
[1725249574684,0.02709381,57934.0,57931.0,0.005]
[1725249574888,0.02709381,57934.0,57932.0,0.0921]
[1725249575099,0.05146663,57951.0,57934.0,0.0921]
[1725249575297,0.10293326,57954.0,57934.0,0.0921]
[1725249575298,0.708944,57950.0,57938.0,0.0941]
[1725249575497,0.009,57942.0,57941.0,0.1001]
[1725249575698,0.000816,57958.0,57942.0,0.0801]
[1725249575904,0.504789,57957.0,57944.0,0.0781]
[1725249576161,0.149616,57957.0,57945.0,0.01684781]
[1725249576365,0.746035,57957.0,57945.0,0.04021025]
[1725249576567,0.555427,57956.0,57946.0,0.0781]
[1725249576769,0.721051,57957.0,57946.0,0.0731]
[1725249576975,2.064782,57957.0,57946.0,0.0731]
[1725249577389,2.041474,57956.0,57946.0,0.0731]
[1725249577599,2.064081,57957.0,57946.0,0.0731]
[1725249577799,2.041474,57956.0,57946.0,0.0731]
[1725249577999,2.064081,57957.0,57946.0,0.0731]
[1725249578129,0.1,57955.0,57946.0,0.0731]
[1725249578356,2.293146,57954.0,57946.0,0.0731]
[1725249578553,0.1,57953.0,57946.0,0.0731]
[1725249578783,1.438345,57952.0,57946.0,0.0741]
[1725249579239,0.1,57951.0,57946.0,0.0731]
[1725249579447,0.1,57951.0,57946.0,0.001]
[1725249579448,2.199006,57950.0,57946.0,0.001]
[1725249579649,0.1,57949.0,57946.0,0.001]
[1725249579853,1.93634,57949.0,57943.0,0.0921]
[1725249580081,1.732396,57948.0,57943.0,0.0921]
[1725249580288,1.732396,57948.0,57941.0,0.0008976]
[1725249580289,1.663356,57947.0,57941.0,0.0008976]
[1725249580505,1.329555,57946.0,57941.0,0.0008976]
[1725249580722,0.1,57945.0,57942.0,0.02337417]
[1725249580953,0.927624,57945.0,57942.0,0.02337417]
[1725249581209,0.773979,57944.0,57942.0,0.02337417]
[1725249581406,0.1,57947.0,57941.0,0.0008976]
[1725249581407,0.603246,57943.0,57941.0,0.0008976]
[1725249581608,0.1,57942.0,57941.0,0.0008976]
[1725249582064,0.314026,57942.0,57941.0,0.0008976]
[1725249582311,0.33381,57942.0,57941.0,0.0008976]
[1725249583365,0.367191,57942.0,57941.0,0.0088976]
[1725249583546,0.33381,57942.0,57941.0,0.0088976]
[1725249584564,0.288526,57942.0,57941.0,0.0088976]
[1725249585429,0.1,57942.0,57941.0,0.0088976]
[1725249585638,0.29514,57942.0,57941.0,0.0088976]
[1725249585847,0.275356,57942.0,57941.0,0.0088976]
[1725249586059,0.1,57942.0,57941.0,0.0088976]
[1725249586283,0.375356,57942.0,57941.0,0.0088976]
[1725249586507,2.552634,57942.0,57941.0,0.0088976]
[1725249586760,2.575634,57942.0,57941.0,6e-07]
[1725249586996,0.25223178,57942.0,57941.0,6e-07]
[1725249587235,0.123,57942.0,57941.0,6e-07]
[1725249587447,0.15229503,57942.0,57941.0,6e-07]
[1725249587683,0.25229503,57942.0,57941.0,6e-07]
[1725249587890,2.095255,57941.0,57929.0,0.0812]
[1725249588102,0.05171719,57937.0,57929.0,0.0812]